Workbook

Sheet tax
B1: Year 1 | C1: Year 2 | D1: Year 3 | E1: Year 4 | F1: Year 5 | G1: Year 6 | H1: Year 7 | I1: Year 8 | J1: Year 9 | K1: Year 10 | L1: Year 11 | M1: Year 12 | N1: Year 13 | O1: Year 14 | P1: Year 15
A3: Résultat | B3: -45000000 | C3: 10000000 | D3: -10000000 | E3: 40000000 | F3: -20000000 | G3: -5000000 | H3: 50000000 | I3: -30000000 | J3: 60000000 | K3: 20000000 | L3: 10000000 | M3: 15000000 | N3: 2000000 | O3: 1000000 | P3: 10000000
A5: Taux
A7: Calcul Final | B7: =B3 -> -45000000 | C7: =+B7+C3 -> -35000000 | D7: =D9+D10 -> -45000000 | E7: =+E10 -> -5000000 | F7: =+F10+F11 -> -25000000 | G7: =+G10+G11+G12 -> -30000000 | H7: =+H12 -> 20000000 | I7: =+I12 -> -30000000 | J7: =+J12 -> 30000000 | K7: =+K12 -> 20000000 | L7: =+L12 -> 10000000 | M7: =+M12 -> 15000000 | N7: =+N12 -> 2000000 | O7: =+O12 -> 1000000 | P7: =+P12 -> 10000000
A9: calcul intermédiaire | B9: =B3 -> -45000000 | C9: =B7+C3 -> -35000000 | D9: =C9 -> -35000000 | E9: =D9+E3 -> 5000000 | F9: 0 | G9: 0 | H9: 0 | I9: 0 | J9: 0 | K9: 0 | L9: 0 | M9: 0 | N9: 0 | O9: 0 | P9: 0
D10: =D3 -> -10000000 | E10: =+D10+E9 -> -5000000 | F10: =+E10 -> -5000000 | G10: =+F10 -> -5000000 | H10: =+G10+H3 -> 45000000 | I10: 0 | J10: 0 | K10: 0 | L10: 0 | M10: 0 | N10: 0 | O10: 0 | P10: 0
F11: =+F3 -> -20000000 | G11: =+F11 -> -20000000 | H11: =+G11+H10 -> 25000000 | I11: 0 | J11: 0 | K11: 0 | L11: 0 | M11: 0 | N11: 0 | O11: 0 | P11: 0
G12: =+G3 -> -5000000 | H12: =+G12+H11 -> 20000000 | I12: =+I3 -> -30000000 | J12: =+I12+J3 -> 30000000 | K12: =+K3 -> 20000000 | L12: =+L3 -> 10000000 | M12: =+M3 -> 15000000 | N12: =+N3 -> 2000000 | O12: =+O3 -> 1000000 | P12: =+P3 -> 10000000
